bitfinex-derivatives/quotes_ETHF0:USTF0_20250817
["timestamp","ask_amount","ask_price","bid_price","bid_amount"]
[1755421889891,2.2365,4551.2,4551.1,4.0895]
[1755421890484,2.2365,4551.2,4551.1,4.7897]
[1755421890884,2.2365,4551.2,4551.1,3.2078]
[1755421891694,0.5522,4551.0,4550.1,3.2078]
[1755421891888,0.0219,4550.4,4549.3,3.2078]
[1755421892087,2.1365,4550.4,4549.3,3.2078]
[1755421892289,1.4137,4550.4,4550.0,3.2078]
[1755421892490,0.0219,4551.0,4550.0,3.2078]
[1755421892687,0.0219,4550.5,4549.4,0.8817]
[1755421892896,2.1584,4550.5,4549.4,0.8817]
[1755421893093,2.1365,4550.4,4549.4,0.8817]
[1755421893293,0.0219,4550.5,4549.3,3.2078]
[1755421893494,0.7447,4550.3,4549.3,3.2078]
[1755421893790,0.7228,4550.0,4549.3,3.2078]
[1755421893997,2.1365,4549.9,4549.3,4.52881]
[1755421894297,0.5303,4550.2,4549.9,2.1022]
[1755421894589,1.2531,4550.2,4550.0,1.5819]
[1755421894796,0.0219,4551.0,4550.0,1.5819]
[1755421894992,0.5303,4550.8,4550.0,1.5819]
[1755421895192,2.1365,4551.1,4550.3,3.2078]
[1755421895696,0.5303,4551.0,4550.4,2.1022]
[1755421896991,0.5303,4551.0,4550.5,0.4392]
[1755421897193,22.099,4551.2,4550.6,2.1022]
[1755421897697,22.099,4551.2,4550.3,3.2078]
[1755421897893,0.8834,4551.1,4550.3,3.2078]
[1755421898194,1.2531,4551.0,4550.3,3.2078]
[1755421898595,0.5303,4550.9,4550.3,3.2078]
[1755421898796,0.8834,4551.1,4550.5,0.7002]
[1755421899100,0.8834,4550.9,4550.3,3.2078]
[1755421899299,0.5303,4550.8,4550.3,3.2078]
[1755421899596,0.1,4551.2,4550.3,3.2078]
[1755421899800,0.1,4551.2,4550.3,3.908]
[1755421899801,1.6062,4550.5,4550.3,3.908]
[1755421899995,2.1365,4550.5,4550.4,1.5819]
[1755421900196,0.5303,4550.5,4550.4,1.5819]
[1755421900402,0.8834,4551.0,4550.4,2.1022]
[1755421900600,2.1365,4550.9,4550.8,4.0895]
[1755421900897,0.5303,4551.1,4550.9,0.8817]
[1755421901106,1.2531,4551.0,4550.9,0.8817]
[1755421901300,1.2531,4551.0,4550.9,1.5819]
[1755421901700,0.1,4551.2,4550.9,2.1022]
[1755421901997,0.1,4551.2,4550.9,1.5819]
[1755421902197,0.1,4551.2,4551.1,1.5819]
[1755421902198,0.6303,4551.2,4551.1,1.5819]
[1755421902401,0.1,4551.2,4551.1,2.1022]
[1755421903198,0.1,4551.2,4551.1,1.5819]
[1755421903401,0.1,4551.2,4550.8,3.2078]
[1755421903597,0.1,4551.2,4551.0,1.5819]
[1755421903904,1.3531,4551.2,4551.1,0.8817]
[1755421904199,0.1,4551.2,4550.8,3.2078]
[1755421904400,2.1365,4550.9,4550.8,3.2078]
[1755421904597,1.4137,4550.9,4550.8,4.6098]
[1755421904799,0.1,4551.2,4551.0,1.402]
[1755421905004,0.1,4551.2,4551.1,1.2205]
[1755421905305,0.1,4551.2,4551.1,2.1022]
[1755421908803,0.1,4551.2,4551.1,2.1241]
[1755421909005,1.2162,4552.4,4551.7,1.31897]
[1755421909208,2.0787,4552.4,4552.3,3.2078]
[1755421909406,2.0787,4553.6,4552.4,0.43901]
[1755421909602,1.2162,4553.4,4552.8,3.2078]
[1755421909901,31.6679,4553.8,4552.8,3.2078]
[1755421909902,31.646,4553.8,4552.8,3.2078]
[1755421910096,31.646,4553.8,4552.8,4.0877]
[1755421910301,0.8625,4553.5,4552.8,4.0877]
[1755421910498,2.0787,4553.4,4553.3,3.2078]
[1755421911307,5.1006,4553.4,4551.7,0.5254]
[1755421911602,5.1006,4553.4,4550.5,1.09798]
[1755421911603,0.8625,4552.9,4552.1,3.7332]
[1755421912002,3.2297,4552.6,4551.6,3.2078]
[1755421912306,1.81640213,4552.5,4551.6,3.2078]
[1755421912509,0.0219,4552.0,4551.6,3.2078]
[1755421912807,0.4506,4551.8,4551.6,3.2078]
[1755421913214,1.36660552,4551.7,4551.6,3.2078]
[1755421913507,1.81720552,4551.7,4551.1,0.5254]
[1755421913708,0.50410552,4551.6,4551.0,3.2078]
[1755421913911,0.8625,4551.5,4551.1,2.1377]
[1755421914106,0.8625,4551.4,4551.1,2.1377]
[1755421914307,0.50501691,4551.3,4551.2,0.5254]
[1755421915010,1.36751691,4551.3,4551.2,0.5254]
[1755421915605,1.36751691,4551.3,4551.2,1.2578]
[1755421915806,1.36751691,4551.3,4551.2,2.1377]
[1755421916010,0.50501691,4551.3,4551.2,2.1377]
[1755421917111,0.5312,4552.7,4551.6,1.4053]
[1755421917406,3.2078,4553.1,4552.5,2.1377]
[1755421917604,4.0703,4553.1,4552.5,1.2578]
[1755421917907,1.3937,4553.0,4552.5,1.2578]
[1755421918111,3.2078,4553.1,4552.5,0.8799]
[1755421918312,1.3937,4552.8,4552.7,2.1377]
[1755421918511,1.3937,4552.8,4552.7,1.2578]
[1755421919016,1.54747028,4554.0,4553.7,0.0219]
[1755421919207,1.54747028,4554.4,4554.0,2.1377]
[1755421919403,3.2078,4555.1,4553.9,3.2078]
[1755421919612,3.2078,4555.6,4554.4,3.2078]
[1755421919809,3.2078,4555.6,4554.5,0.43881]
[1755421920008,3.2078,4555.6,4554.9,0.5473]
[1755421920203,3.2078,4556.1,4555.3,2.1596]
[1755421920408,1.3937,4556.8,4555.4,2.1596]
[1755421920612,1.3937,4556.8,4555.5,2.1377]
[1755421920812,1.3937,4556.8,4555.6,1.2578]
[1755421921014,3.2078,4556.7,4555.6,1.2578]
[1755421921215,1.3937,4556.6,4555.6,1.2578]
[1755421921403,1.3937,4556.5,4555.6,1.2578]
[1755421921610,3.2078,4556.1,4555.4,3.2078]
[1755421921809,0.5312,4556.0,4555.4,3.2078]
[1755421922010,0.8625,4555.7,4555.0,1.2578]
[1755421922209,0.8625,4555.7,4555.0,2.1377]
[1755421922504,4.0703,4555.1,4554.5,0.7324]
[1755421922707,4.0703,4555.1,4554.4,3.7332]
[1755421923313,0.5312,4555.0,4553.9,0.5254]
[1755421923518,21.911,4556.1,4553.1,3.2078]
[1755421923519,3.2078,4554.1,4553.1,3.2078]
[1755421923708,3.2078,4553.5,4552.8,0.8799]
[1755421923908,0.5312,4553.4,4552.6,0.5254]
[1755421924114,1.3937,4553.4,4552.6,0.5254]
[1755421924515,3.2078,4552.8,4552.1,0.8799]
[1755421924708,1.3937,4552.7,4551.8,3.2078]
[1755421924916,0.8625,4552.6,4551.8,3.2078]
[1755421925119,1.3937,4552.2,4551.4,0.5254]
[1755421925313,0.8625,4552.1,4551.3,3.2078]
[1755421925616,3.2078,4552.8,4551.4,0.0219]
[1755421925818,3.2297,4553.3,4551.2,3.2078]
[1755421926111,1.3937,4552.7,4551.5,0.7324]
[1755421926308,1.3937,4552.7,4551.7,3.2078]
[1755421926514,1.3937,4552.7,4551.8,0.7324]
[1755421926813,3.2078,4552.8,4551.9,0.8799]
[1755421927112,3.2078,4552.8,4552.4,2.1377]
[1755421927315,0.5312,4553.3,4552.7,3.2078]
[1755421927316,3.2078,4553.3,4552.7,3.2078]
[1755421927519,3.2078,4553.3,4552.8,2.1377]
[1755421927713,3.2078,4553.3,4552.9,2.1377]
[1755421927915,3.2078,4553.3,4552.8,2.1377]
[1755421928107,32.4835,4553.8,4552.7,3.2078]
[1755421928108,31.621,4553.8,4553.1,1.6123]
[1755421928308,4.0703,4554.3,4553.2,0.5254]
[1755421928523,4.0703,4554.3,4553.4,0.8799]
[1755421928711,0.5312,4554.6,4553.7,1.2578]
[1755421928913,1.36436694,4554.5,4553.7,1.2578]
[1755421929217,1.36436694,4554.5,4553.7,0.7324]
[1755421929218,3.2078,4554.3,4553.7,0.7324]
[1755421929519,1.3937,4554.2,4553.4,0.5254]
[1755421929820,0.5019549,4554.1,4553.4,0.5254]
[1755421930019,0.5019549,4554.0,4553.4,0.5254]
[1755421930211,1.3937,4554.2,4553.4,0.5254]
[1755421930417,0.50208461,4554.1,4553.4,0.5254]
[1755421930618,0.50208461,4554.0,4553.4,0.5254]
[1755421930814,1.3937,4554.2,4553.4,0.5254]
[1755421931015,1.36458594,4554.1,4553.2,3.2078]
[1755421931220,1.3937,4554.0,4553.2,3.2078]
[1755421931420,0.50217135,4553.9,4553.2,3.2078]
[1755421931622,0.50217135,4553.8,4553.2,3.2078]
[1755421931819,1.3937,4554.0,4553.2,3.2078]
[1755421932017,0.50217062,4553.9,4553.2,3.2078]
[1755421932319,1.3937,4554.0,4553.3,0.5254]
[1755421932517,3.2078,4554.3,4553.4,1.6123]
[1755421932718,0.8625,4554.7,4553.5,0.5254]
[1755421932920,0.50215226,4554.6,4553.6,1.6123]
[1755421933125,3.2078,4554.8,4553.7,4.4656]
[1755421933418,3.2078,4554.8,4553.7,4.90448]
[1755421933620,0.8625,4555.0,4554.1,1.4053]
[1755421933817,0.8625,4555.0,4554.1,1.84415]
[1755421934017,0.8625,4555.0,4554.4,0.7324]
[1755421934227,0.5312,4554.9,4554.2,3.2078]
[1755421934419,0.8625,4554.8,4554.2,3.2078]
[1755421934917,0.8625,4554.8,4554.4,2.1377]
[1755421935118,0.8625,4554.8,4554.5,0.8799]
[1755421935322,0.8625,4554.8,4554.6,1.2578]
[1755421935523,0.8625,4554.7,4554.6,1.2578]
[1755421935819,0.5312,4555.1,4554.2,3.2078]
[1755421936029,3.2078,4554.8,4554.2,3.2078]
[1755421936219,0.5312,4554.5,4554.2,3.2078]
[1755421936421,0.8625,4554.5,4554.4,1.2578]
[1755421936816,0.8625,4554.5,4554.3,0.8799]
[1755421937024,0.8625,4554.4,4554.2,3.2078]
[1755421937428,1.4236,4554.7,4554.2,3.2078]
[1755421937626,1.4236,4554.6,4554.2,3.2078]
[1755421937925,0.5305,4554.5,4554.3,0.7261]
[1755421938129,1.4236,4554.3,4554.2,3.2078]
[1755421938525,0.5305,4554.2,4553.9,0.5424]
[1755421938726,1.4236,4554.1,4553.7,0.7261]
[1755421938928,0.8931,4553.9,4553.7,0.7261]
[1755421939125,0.5305,4554.0,4553.3,2.162]
[1755421939321,0.5305,4554.0,4553.3,1.2685]
[1755421939527,1.4236,4554.0,4553.3,1.2685]
[1755421939830,0.5305,4554.5,4553.5,1.2685]
[1755421940027,1.4236,4554.5,4553.5,1.2685]
[1755421940325,3.2078,4554.7,4553.4,0.5424]
[1755421940528,3.2078,4554.2,4553.3,3.2078]
[1755421940727,0.5305,4554.0,4553.3,3.2078]
[1755421940932,0.8931,4553.9,4553.3,3.2078]
[1755421941436,0.5305,4553.8,4553.3,3.2078]
[1755421941731,1.4236,4553.4,4552.6,2.162]
[1755421941928,0.8931,4553.1,4552.5,3.2078]
[1755421942229,1.4236,4552.8,4551.3,3.2078]
[1755421942424,0.8931,4552.2,4551.5,0.7261]
[1755421942629,0.8931,4552.8,4551.4,0.0219]
[1755421942932,4.1009,4553.4,4552.5,2.162]
[1755421944026,4.1009,4553.4,4552.6,1.2685]
[1755421944226,0.8931,4553.2,4552.4,3.2078]
[1755421944427,3.2078,4553.4,4552.7,1.2685]
[1755421944639,3.2078,4553.4,4552.8,1.4359]
[1755421944833,3.2078,4553.4,4552.9,0.7261]
[1755421945036,3.2078,4553.4,4553.1,0.7261]
[1755421945337,4.1009,4553.4,4553.2,0.7261]
[1755421945636,4.1009,4553.4,4552.4,3.6687]
[1755421945836,4.1009,4553.4,4552.8,1.2685]
[1755421945837,3.2078,4553.4,4552.8,1.2685]
[1755421946134,3.2078,4553.4,4552.6,2.162]
[1755421946434,0.5305,4553.2,4552.4,3.2078]
[1755421946735,0.8931,4552.5,4551.9,3.2078]
[1755421946930,1.4236,4552.5,4551.9,3.2078]
[1755421947330,1.4236,4553.0,4552.0,2.162]
[1755421947531,1.4236,4553.0,4552.1,1.2685]
[1755421947734,4.6314,4553.0,4552.1,1.2685]
[1755421948331,1.4236,4553.0,4552.1,1.33254]
[1755421948532,1.4236,4553.3,4552.1,0.7261]
[1755421948727,0.8931,4553.2,4552.1,0.7261]
[1755421948934,0.8931,4553.0,4552.1,0.7261]
[1755421949534,0.8931,4552.8,4552.1,0.7261]
[1755421949741,0.5305,4552.5,4551.9,3.2078]
[1755421949933,4.6314,4552.3,4551.5,1.6196]
[1755421950240,3.2078,4552.3,4551.3,3.2078]
[1755421950440,1.4236,4552.1,4551.3,3.2078]
[1755421950642,0.8931,4552.0,4551.3,3.2078]
[1755421950838,0.8931,4551.8,4551.3,3.2078]
[1755421951040,3.2078,4552.3,4551.3,3.2078]
[1755421951041,1.4236,4551.6,4551.3,3.2078]
[1755421951335,0.5305,4552.1,4551.3,3.2078]
[1755421951636,3.2078,4551.8,4550.8,3.2078]
[1755421951843,0.5305,4551.6,4550.8,3.2078]
[1755421952043,1.4236,4551.5,4550.8,3.2078]
[1755421952844,1.4236,4551.5,4550.8,3.9339]
[1755421953840,1.4236,4551.2,4550.3,3.2078]
[1755421954030,0.8931,4551.1,4550.3,3.2078]
[1755421954540,0.8931,4551.1,4550.3,4.1013]
[1755421955037,0.8931,4550.9,4550.3,3.2078]
[1755421955237,1.4236,4550.7,4550.3,3.2078]
[1755421955440,1.4236,4550.5,4550.1,0.09889784]
[1755421955635,3.2078,4550.6,4550.2,2.162]
[1755421955836,3.2078,4550.6,4550.1,0.09889784]
[1755421956140,1.4236,4551.1,4550.2,2.162]
[1755421956439,0.5305,4550.9,4550.1,0.09889784]
[1755421956630,0.8931,4550.8,4550.1,0.09889784]
[1755421957234,0.8931,4550.8,4550.2,1.2685]
[1755421958439,0.5305,4550.7,4550.1,0.09889784]
[1755421958639,3.7383,4550.7,4550.1,0.09889784]
[1755421959032,3.7383,4550.7,4550.2,0.5424]
[1755421959234,3.2078,4550.7,4550.3,0.7261]
[1755421959435,3.2078,4550.7,4550.4,2.162]
[1755421959649,3.2078,4550.7,4550.1,0.64129784]
[1755421959841,3.2078,4550.7,4550.1,0.82499784]
[1755421960740,1.4236,4550.5,4550.1,0.09889784]
[1755421960945,1.4236,4550.6,4550.1,0.09889784]
[1755421961241,3.2078,4550.7,4550.1,0.09889784]
[1755421961444,4.1009,4550.7,4550.1,0.64129784]
[1755421961640,0.5305,4550.5,4550.1,0.09889784]
[1755421961834,0.8931,4550.6,4550.1,0.09889784]
[1755421962036,1.4236,4550.5,4550.2,0.7261]
[1755421962242,0.5305,4550.4,4550.2,0.7261]
[1755421962442,1.4236,4550.6,4550.1,0.09889784]
[1755421962836,1.4236,4550.5,4550.1,0.09889784]
[1755421963039,3.2078,4550.7,4550.1,1.53479784]
[1755421963244,1.4236,4550.5,4550.1,0.09889784]
[1755421963440,0.8931,4550.5,4550.1,0.09889784]
[1755421963649,3.2078,4550.7,4550.1,0.09889784]
[1755421963843,1.4236,4550.2,4550.1,0.09889784]
[1755421964049,4.6314,4550.2,4550.1,0.09889784]
[1755421966856,4.6314,4550.2,4549.1,3.9339]
[1755421967054,1.4236,4550.1,4549.1,3.2078]
[1755421967357,0.8931,4549.9,4549.2,1.4359]
[1755421967648,21.864,4549.8,4549.6,0.5256]
[1755421967854,0.8523,4550.1,4549.2,0.43932]
[1755421968052,21.863,4550.0,4549.3,2.1163]
[1755421968354,21.863,4550.0,4549.6,1.5907]
[1755421968553,21.863,4550.0,4549.7,2.1163]
[1755421968854,21.863,4550.0,4549.9,0.726]
[1755421969153,21.863,4550.0,4549.9,2.1163]
[1755421969363,22.7133,4550.3,4550.0,1.5907]
[1755421969652,22.7133,4550.3,4550.2,2.1163]
[1755421969848,23.2404,4550.3,4549.2,0.5256]
[1755421970056,4.0601,4550.2,4549.3,2.1163]
[1755421970254,4.0601,4550.2,4549.4,0.5256]
[1755421970450,4.0601,4550.2,4549.4,2.1163]
[1755421970648,4.0601,4550.2,4549.5,2.1163]
[1755421972056,4.0601,4550.2,4549.6,0.5256]
[1755421973258,1.3794,4550.1,4549.4,0.5256]
[1755421973555,0.5271,4549.9,4549.4,0.5256]
[1755421973756,0.5271,4549.9,4549.2,1.5907]
[1755421973757,1.3794,4550.1,4549.2,2.1163]
[1755421973952,0.8523,4550.0,4549.2,2.1163]
[1755421976457,0.8523,4550.0,4549.2,1.2516]
[1755421976662,3.2078,4549.7,4549.2,0.5256]
[1755421976861,0.8523,4549.5,4549.3,1.2516]
[1755421977061,22.7043,4549.4,4549.3,0.726]
[1755421977262,22.7043,4549.4,4549.3,1.5907]
[1755421977754,22.7043,4549.4,4549.3,2.1163]
[1755421977959,23.2314,4549.4,4548.6,0.5256]
[1755421978261,0.8523,4548.9,4548.3,0.8647]
[1755421978554,1.3794,4548.4,4548.2,0.5256]
[1755421978759,23.2294,4548.3,4548.2,0.5256]
[1755421978959,1.3794,4548.2,4547.9,4.0725]
[1755421979161,1.3794,4548.1,4547.9,5.3241]
[1755421979349,0.8523,4548.0,4547.4,0.5256]
[1755421979556,21.85,4548.3,4547.1,3.2078]
[1755421979756,0.8523,4547.8,4547.7,2.1163]
[1755421980456,0.8523,4547.8,4547.1,3.2078]
[1755421980661,0.8523,4547.8,4547.2,2.1163]
[1755421981058,1.3794,4547.6,4546.8,1.2516]
[1755421981358,0.5271,4547.0,4546.8,1.2516]
[1755421981561,1.3794,4546.9,4546.8,1.2516]
[1755421981764,1.3794,4546.9,4546.8,2.1163]
[1755421981950,1.3794,4547.0,4546.8,0.5256]
[1755421982158,1.3794,4547.0,4546.9,2.1163]
[1755421982455,3.2078,4547.1,4546.1,3.2078]
[1755421982656,3.2078,4547.1,4546.3,2.1163]
[1755421982859,0.8523,4547.0,4546.3,2.1163]
[1755421983054,0.5271,4546.9,4546.3,2.1163]
[1755421984458,0.5271,4546.9,4546.1,3.2078]
[1755421984459,3.2078,4547.1,4546.2,0.0219]
[1755421984661,21.843,4547.2,4546.3,1.3903]
[1755421984964,21.843,4547.2,4546.4,0.5256]
[1755421985164,21.843,4547.2,4546.5,1.5907]
[1755421985359,21.843,4547.2,4546.6,0.8647]
[1755421985559,21.843,4547.2,4546.8,1.5907]
[1755421985758,21.843,4547.2,4546.3,2.1163]
[1755421985958,21.843,4547.2,4546.2,0.0219]
[1755421986153,4.0601,4547.4,4546.6,0.0219]
[1755421986357,21.844,4547.3,4546.7,1.5907]
[1755421986657,21.844,4547.2,4546.4,0.0219]
[1755421986857,21.844,4547.2,4547.1,2.1163]
[1755421987053,3.2078,4547.4,4547.1,2.1163]
[1755421987260,3.2078,4547.4,4546.9,0.5256]
[1755421987466,0.8523,4547.3,4546.7,1.2516]
[1755421988061,1.3794,4547.1,4546.8,2.1163]
[1755421988262,0.5271,4547.1,4546.9,1.2516]
[1755421988462,0.8523,4547.0,4546.9,1.2516]
[1755421988766,21.843,4547.0,4546.3,2.5559]
[1755421988966,21.843,4547.0,4546.4,1.5907]
[1755421989167,21.843,4547.0,4546.6,1.5907]
[1755421989369,0.8523,4547.3,4546.5,0.5256]
[1755421989370,0.8523,4547.3,4546.7,2.1163]
[1755421989566,21.841,4547.2,4546.9,1.3903]
[1755421989767,21.841,4547.1,4546.6,2.1163]
[1755421989965,21.841,4547.1,4546.8,2.1163]
[1755421990168,0.8523,4547.3,4546.9,2.1163]
[1755421990366,0.8523,4547.3,4547.0,2.1163]
[1755421990667,21.84,4547.2,4547.1,2.1163]
[1755421991462,3.2078,4547.4,4546.5,3.2297]
[1755421991668,3.2078,4548.0,4547.6,0.43948]
[1755421991872,3.2078,4548.5,4547.9,2.1163]
[1755421992064,3.2078,4548.5,4548.1,0.43943]
[1755421992367,22.3651,4549.1,4547.2,1.09879]
[1755421992368,21.838,4549.1,4548.3,4.17281]
[1755421992569,21.838,4549.1,4548.5,0.43939]
[1755421992771,21.838,4549.1,4548.6,2.1163]
[1755421992968,21.836,4549.7,4549.1,2.1163]
[1755421993168,21.836,4549.7,4549.0,3.2078]
[1755421993368,21.836,4549.7,4549.4,0.726]
[1755421993672,2.0453,4549.5,4549.1,1.2516]
[1755421993871,1.5182,4549.5,4549.3,2.1163]
[1755421994172,1.5182,4549.5,4549.0,3.2078]
[1755421994173,1.5182,4549.5,4549.4,2.1163]
[1755421994476,21.836,4549.7,4549.1,2.1163]
[1755421994477,22.6883,4549.7,4549.1,2.1163]
[1755421995077,21.836,4549.7,4549.3,1.3903]
[1755421995378,21.836,4549.7,4549.6,1.5907]
[1755421995574,23.8813,4549.7,4549.6,1.2516]
[1755421995775,21.836,4549.7,4549.3,0.5256]
[1755421996071,1.5182,4549.6,4549.5,1.2516]
[1755421996472,2.0453,4549.6,4549.5,1.2516]
[1755421996677,1.5182,4549.6,4549.5,2.1163]
[1755421996972,2.0453,4549.6,4549.1,0.5256]
[1755421997383,21.836,4549.7,4549.2,1.5907]
[1755421997575,21.836,4549.7,4549.6,2.0889]
[1755421997981,23.3776,4549.7,4549.6,2.0889]
[1755421998584,21.836,4549.7,4549.0,3.2078]
[1755421998884,2.0531,4549.6,4549.0,3.2078]
[1755421999883,0.5115,4549.6,4549.0,3.2078]
[1755422000079,21.836,4549.7,4549.0,3.2078]
[1755422000277,21.8579,4549.7,4549.0,3.2078]
[1755422000474,2.0531,4549.4,4549.0,3.2078]
[1755422000674,1.1719,4549.3,4548.2,3.7056]
[1755422000874,3.2078,4549.0,4548.2,3.7056]
[1755422001184,23.3586,4548.9,4548.2,3.7056]
[1755422001781,0.5115,4548.8,4548.2,3.7056]
[1755422001983,2.0531,4548.8,4548.2,3.7056]
[1755422002284,0.8812,4548.7,4548.2,3.7056]
[1755422002480,2.0531,4548.4,4548.3,0.4978]
[1755422002681,2.0531,4548.4,4547.4,0.43949]
[1755422002682,1.3927,4548.7,4547.7,0.4978]
[1755422002885,3.2297,4548.5,4547.4,1.5911]
[1755422003081,21.817,4548.9,4547.9,0.6957]
[1755422003277,21.817,4548.9,4548.1,1.1935]
[1755422003483,21.817,4548.9,4548.3,0.4978]
[1755422003676,2.0531,4548.4,4547.7,3.2078]
[1755422003882,1.5416,4548.2,4547.7,3.2078]
[1755422004083,2.0531,4548.2,4547.7,3.2078]
[1755422004282,21.812,4548.3,4547.7,3.2078]
[1755422004485,22.3235,4548.3,4547.9,2.0889]
[1755422004684,1.5416,4548.1,4548.0,0.4978]
[1755422004891,2.0531,4548.1,4548.0,0.4978]
[1755422006387,0.8812,4548.4,4547.8,2.0889]
[1755422006587,21.811,4548.1,4547.9,2.0889]
[1755422006782,21.811,4548.1,4548.0,2.0889]
[1755422006987,23.8641,4548.1,4548.0,0.4978]
[1755422007388,21.811,4548.1,4547.7,3.2078]
[1755422007593,1.5416,4547.6,4547.3,2.0889]
[1755422007785,23.8641,4548.1,4547.3,2.0889]
[1755422009390,1.5416,4548.0,4547.3,2.0889]
[1755422010189,1.5416,4548.0,4547.3,1.5911]
[1755422010389,1.5416,4548.0,4547.4,0.4978]
[1755422010590,1.5416,4548.0,4547.5,0.6957]
[1755422010793,0.8812,4547.9,4546.9,0.0219]
[1755422010994,0.8812,4547.9,4547.0,0.8954]
[1755422011187,0.8812,4547.9,4547.3,3.2078]
[1755422011389,0.8812,4547.9,4547.4,2.0889]
[1755422011685,0.8812,4547.9,4547.7,0.4978]
[1755422011890,22.4714,4548.1,4547.3,3.2078]
[1755422012392,0.8812,4548.0,4547.8,2.0889]
[1755422012587,1.5416,4548.0,4547.9,2.0889]
[1755422013089,2.0531,4548.0,4547.7,0.00503061]
[1755422013294,0.8812,4548.0,4547.7,0.00503061]
[1755422013494,0.6604,4547.9,4547.7,0.00503061]
[1755422013695,2.0531,4547.8,4547.7,0.00503061]
[1755422014296,5.2609,4547.8,4547.7,0.00503061]
[1755422015090,2.197,4547.6,4545.3,1.51119225]
[1755422015296,3.2078,4545.7,4545.0,0.4978]
[1755422015492,3.2078,4545.2,4545.1,2.0889]
[1755422016290,21.794,4546.0,4545.2,0.022]
[1755422016494,21.794,4546.0,4545.5,0.6957]
[1755422016694,21.794,4546.0,4545.0,3.2078]
[1755422016894,21.794,4546.0,4545.3,1.1935]
[1755422017199,21.794,4546.0,4545.5,0.4978]
[1755422017400,0.6604,4545.9,4545.6,0.6957]
[1755422017595,0.6604,4545.9,4545.7,1.3932]
[1755422017793,0.6604,4545.9,4545.1,2.0889]
[1755422017992,0.6604,4545.9,4545.2,1.1935]
[1755422018194,0.6604,4545.9,4545.0,3.2078]
[1755422018394,0.6604,4545.9,4545.4,0.4978]
[1755422018594,0.6604,4545.9,4545.0,3.2078]
[1755422018894,21.794,4546.0,4545.2,1.5911]
[1755422019098,3.2078,4546.2,4545.7,0.43965]
[1755422019301,3.2078,4546.8,4545.6,2.0889]
[1755422019493,3.2078,4546.8,4545.8,0.43965]
[1755422019688,0.6604,4547.2,4546.0,1.2154]
[1755422019897,3.2078,4547.3,4546.5,0.43958]
[1755422020096,3.2078,4547.3,4546.6,0.8954]
[1755422020293,3.2078,4547.9,4546.8,4.1032]
[1755422020492,3.2078,4548.7,4547.0,0.43953]
[1755422020700,3.8682,4548.5,4546.9,2.0889]
[1755422020894,3.8682,4548.0,4547.0,2.0889]
[1755422021198,3.8682,4548.0,4547.1,1.1935]
[1755422021501,3.8682,4548.0,4547.2,1.5911]
[1755422021703,3.8682,4548.0,4547.4,1.5911]
[1755422021997,3.8682,4548.0,4546.8,3.64735]
[1755422022198,3.8682,4548.0,4547.0,0.6957]
[1755422022500,3.8682,4548.0,4547.2,1.3932]
[1755422022702,0.6604,4547.9,4547.2,1.3932]
[1755422023895,0.6604,4547.8,4547.2,1.3932]
[1755422025193,0.6604,4547.8,4546.3,3.64739]
[1755422025194,0.5115,4547.4,4546.7,1.3932]
[1755422025400,0.6604,4546.8,4546.7,1.3932]
[1755422025594,3.2078,4547.0,4546.4,0.4978]
[1755422025595,0.6604,4546.5,4546.4,0.4978]
[1755422025797,1.1719,4546.4,4546.0,1.3932]
[1755422025999,0.6604,4546.4,4545.3,2.0889]
[1755422026193,0.6604,4546.4,4545.3,3.2078]
[1755422026400,0.6604,4546.4,4545.6,0.4978]
[1755422026800,0.6604,4546.4,4545.7,0.8954]
[1755422027094,3.2078,4546.5,4545.9,0.8954]
[1755422027296,0.5115,4546.9,4545.3,3.2298]
[1755422027297,21.783,4546.8,4546.2,1.3932]
[1755422027501,21.783,4546.8,4545.6,0.6873]
[1755422027699,21.783,4546.8,4545.8,1.1903]
[1755422027700,0.7111,4546.7,4545.8,1.1903]
[1755422027898,3.2078,4546.6,4545.9,1.3507]
[1755422028094,3.2078,4546.6,4546.0,1.3507]
[1755422028403,0.7111,4546.5,4545.4,0.43968]
[1755422028605,0.7111,4546.5,4546.4,1.3507]
[1755422029406,24.9888,4546.6,4546.5,2.038]
[1755422029903,25.6999,4546.6,4546.5,1.3507]
[1755422030503,1.2045,4546.5,4546.2,1.3507]
[1755422030802,0.7111,4546.4,4546.3,1.3507]
[1755422031506,1.2045,4546.4,4545.8,0.6873]
[1755422031802,24.9888,4546.6,4545.8,2.038]
[1755422031803,1.2045,4546.5,4545.8,2.038]
[1755422033506,0.7111,4546.4,4545.8,2.038]
[1755422033710,24.9888,4546.6,4545.4,2.49969]
[1755422033910,24.9888,4546.6,4545.6,2.038]
[1755422034104,24.9888,4546.6,4545.7,0.503]
[1755422034411,21.776,4546.5,4546.1,0.503]
[1755422034606,21.776,4546.5,4546.2,0.8477]
[1755422034806,21.776,4546.5,4546.4,2.038]
[1755422035111,21.776,4546.5,4545.6,0.6873]
[1755422035306,21.776,4546.5,4545.9,0.8477]
[1755422035608,21.776,4546.5,4545.6,0.46156]
[1755422035807,21.776,4546.5,4546.0,0.503]
[1755422036009,21.776,4546.5,4546.2,0.503]
[1755422036309,21.776,4546.5,4546.4,1.1903]
[1755422036510,21.776,4546.5,4546.4,2.038]
[1755422037205,22.4871,4546.5,4546.4,2.038]